[Event "*** Titled Tuesday Blitz"]
[Site "Chess.com"]
[Date "2021.04.20"]
[Round "5"]
[White "hedgehog280"]
[Black "HanSchut"]
[Result "1-0"]
[WhiteElo "2557"]
[BlackElo "2265"]
[TimeControl "180+1"]
[EndTime "10:53:13 PDT"]
[Termination "hedgehog280 won by resignation"]

1. Nf3 {[%clk 0:03:00.9]} 1... Nf6 {[%clk 0:02:59.7]} 2. b3 {[%clk 0:02:58.6]}
2... g6 {[%clk 0:02:58.9]} 3. Bb2 {[%clk 0:02:59.2]} 3... Bg7 {[%clk 0:02:59.5]}
4. g3 {[%clk 0:02:59.8]} 4... O-O {[%clk 0:02:59.9]} 5. Bg2 {[%clk 0:03:00.5]}
5... d5 {[%clk 0:03:00.4]} 6. O-O {[%clk 0:03:00.4]} 6... c5 {[%clk 0:03:00.7]}
7. c4 {[%clk 0:03:00.7]} 7... dxc4 {[%clk 0:02:57.6]} 8. bxc4 {[%clk 0:03:00.4]}
8... Nc6 {[%clk 0:02:58.5]} 9. d3 {[%clk 0:03:00.6]} 9... Bg4 {[%clk 0:02:54.1]}
10. Nbd2 {[%clk 0:02:58.9]} 10... Qd7 {[%clk 0:02:52.1]} 11. Re1 {[%clk
0:02:56.6]} 11... Bh3 {[%clk 0:02:51.2]} 12. Bh1 {[%clk 0:02:55.4]} 12... Rac8
{[%clk 0:02:50.8]} 13. Qb3 {[%clk 0:02:52]} 13... b6 {[%clk 0:02:50.8]} 14. Bc3
{[%clk 0:02:39]} 14... Rfe8 {[%clk 0:02:45.4]} 15. Ng5 {[%clk 0:02:32.9]} 15...
Nd4 {[%clk 0:02:20.4]} 16. Qb2 {[%clk 0:02:30]} 16... Bg4 {[%clk 0:02:09.8]} 17.
f3 {[%clk 0:02:09.3]} 17... h6 {[%clk 0:01:57.5]} 18. Nxf7 {[%clk 0:02:06.3]}
18... Kxf7 {[%clk 0:01:57]} 19. fxg4 {[%clk 0:02:06.7]} 19... Nxg4 {[%clk
0:01:34.3]} 20. e3 {[%clk 0:01:40.8]} 20... Nf5 {[%clk 0:01:26.7]} 21. Bxg7
{[%clk 0:01:36.8]} 21... Nxg7 {[%clk 0:01:27.1]} 22. Rad1 {[%clk 0:01:30.5]}
22... e6 {[%clk 0:00:46.5]} 23. h3 {[%clk 0:01:21.7]} 23... Nf6 {[%clk
0:00:38.1]} 24. Rf1 {[%clk 0:01:21.9]} 24... Qe7 {[%clk 0:00:35.8]} 25. Ne4
{[%clk 0:01:18.7]} 25... Nh5 {[%clk 0:00:25.9]} 26. g4 {[%clk 0:01:17.5]} 26...
Kg8 {[%clk 0:00:21.9]} 27. Nxf6+ {[%clk 0:01:16.9]} 27... Nxf6 {[%clk
0:00:21.9]} 28. Qxf6 {[%clk 0:01:17.6]} 28... Qxf6 {[%clk 0:00:20.3]} 29. Rxf6
{[%clk 0:01:18.5]} 29... Kg7 {[%clk 0:00:20.7]} 30. Rdf1 {[%clk 0:01:18.6]}
30... Re7 {[%clk 0:00:21.3]} 31. Be4 {[%clk 0:01:18.2]} 1-0

[Event "*** Titled Tuesday Blitz"]
[Site "Chess.com"]
[Date "2021.04.20"]
[Round "5"]
[White "Sashadav97"]
[Black "TimofeevAr"]
[Result "1-0"]
[WhiteElo "2625"]
[BlackElo "2818"]
[TimeControl "180+1"]
[EndTime "10:53:17 PDT"]
[Termination "Sashadav97 won by resignation"]

1. d4 {[%clk 0:03:00.9]} 1... Nf6 {[%clk 0:02:59.1]} 2. c4 {[%clk 0:02:57.6]}
2... g6 {[%clk 0:02:59]} 3. Nc3 {[%clk 0:02:57.9]} 3... d5 {[%clk 0:02:59.3]} 4.
cxd5 {[%clk 0:02:58.8]} 4... Nxd5 {[%clk 0:02:59.4]} 5. e4 {[%clk 0:02:59.4]}
5... Nxc3 {[%clk 0:02:59.4]} 6. bxc3 {[%clk 0:03:00.3]} 6... Bg7 {[%clk
0:02:59.7]} 7. Nf3 {[%clk 0:03:01]} 7... c5 {[%clk 0:02:59.8]} 8. Bb5+ {[%clk
0:03:01.1]} 8... Nd7 {[%clk 0:02:57.9]} 9. O-O {[%clk 0:02:59.8]} 9... O-O
{[%clk 0:02:57.9]} 10. Re1 {[%clk 0:03:00]} 10... Qc7 {[%clk 0:02:58]} 11. Bg5
{[%clk 0:02:51.3]} 11... e6 {[%clk 0:02:57.3]} 12. Rc1 {[%clk 0:02:47.5]} 12...
a6 {[%clk 0:02:53.5]} 13. Bf1 {[%clk 0:02:47.2]} 13... b6 {[%clk 0:02:50.9]} 14.
d5 {[%clk 0:02:40.4]} 14... Bb7 {[%clk 0:02:43.1]} 15. d6 {[%clk 0:02:26]} 15...
Qc6 {[%clk 0:02:42.1]} 16. Be7 {[%clk 0:02:26]} 16... Rfe8 {[%clk 0:02:40.9]}
17. e5 {[%clk 0:02:24.3]} 17... b5 {[%clk 0:02:36.6]} 18. Qd2 {[%clk 0:02:15.8]}
18... Bf8 {[%clk 0:02:24.6]} 19. Bxf8 {[%clk 0:02:03.5]} 19... Nxf8 {[%clk
0:02:24]} 20. Qh6 {[%clk 0:01:54.5]} 20... Rad8 {[%clk 0:02:14.4]} 21. Ng5
{[%clk 0:01:50.3]} 21... Qd5 {[%clk 0:02:01.2]} 22. Re3 {[%clk 0:01:17.9]} 22...
Qd2 {[%clk 0:02:00.2]} 23. Rce1 {[%clk 0:01:06.2]} 23... c4 {[%clk 0:02:00.2]}
24. Rh3 {[%clk 0:00:46.4]} 24... b4 {[%clk 0:01:50.2]} 25. Ree3 {[%clk
0:00:44.9]} 25... Rxd6 {[%clk 0:01:35.8]} 26. Nxh7 {[%clk 0:00:35.5]} 26... Nxh7
{[%clk 0:01:34.6]} 27. Qxh7+ {[%clk 0:00:35.6]} 27... Kf8 {[%clk 0:01:35.2]} 28.
exd6 {[%clk 0:00:34.2]} 28... Qxd6 {[%clk 0:01:34.5]} 29. Bxc4 {[%clk
0:00:29.4]} 29... Ke7 {[%clk 0:01:16.3]} 30. Qh4+ {[%clk 0:00:26.4]} 30... Kf8
{[%clk 0:01:16.6]} 31. Qf6 {[%clk 0:00:21.9]} 1-0

[Event "*** Titled Tuesday Blitz"]
[Site "Chess.com"]
[Date "2021.04.20"]
[Round "5"]
[White "InvisibleWarrior2252"]
[Black "ckgchess"]
[Result "0-1"]
[WhiteElo "2506"]
[BlackElo "2697"]
[TimeControl "180+1"]
[EndTime "10:53:18 PDT"]
[Termination "ckgchess won by resignation"]

1. e4 {[%clk 0:03:00.7]} 1... c5 {[%clk 0:03:00.1]} 2. Nf3 {[%clk 0:03:00.7]}
2... g6 {[%clk 0:03:00.3]} 3. d4 {[%clk 0:02:59.2]} 3... cxd4 {[%clk 0:03:01.2]}
4. Qxd4 {[%clk 0:03:00.1]} 4... Nf6 {[%clk 0:03:01.4]} 5. Nc3 {[%clk 0:02:58.2]}
5... Nc6 {[%clk 0:03:01.5]} 6. Qa4 {[%clk 0:02:57.9]} 6... d6 {[%clk 0:03:02.1]}
7. e5 {[%clk 0:02:56.6]} 7... dxe5 {[%clk 0:03:03]} 8. Nxe5 {[%clk 0:02:57.1]}
8... Bd7 {[%clk 0:03:03.6]} 9. Nxd7 {[%clk 0:02:56.3]} 9... Qxd7 {[%clk
0:03:04.5]} 10. Be3 {[%clk 0:02:54.7]} 10... Bg7 {[%clk 0:03:04.4]} 11. Rd1
{[%clk 0:02:53]} 11... Qg4 {[%clk 0:03:04.6]} 12. Qb3 {[%clk 0:02:39.4]} 12...
O-O {[%clk 0:03:00.3]} 13. Qxb7 {[%clk 0:02:09]} 13... Nb4 {[%clk 0:03:00.6]}
14. Bd3 {[%clk 0:02:02.5]} 14... Rfb8 {[%clk 0:02:53.4]} 15. Qxe7 {[%clk
0:01:15.1]} 15... Qxg2 {[%clk 0:02:41.7]} 16. Rf1 {[%clk 0:01:09.6]} 16... Nxd3+
{[%clk 0:01:37.3]} 17. Rxd3 {[%clk 0:01:10.5]} 17... Ng4 {[%clk 0:01:22]} 18.
Rd7 {[%clk 0:00:58.1]} 18... Rf8 {[%clk 0:00:57.1]} 19. h3 {[%clk 0:00:24.8]}
19... Nh2 {[%clk 0:00:49.2]} 0-1

[Event "*** Titled Tuesday Blitz"]
[Site "Chess.com"]
[Date "2021.04.20"]
[Round "5"]
[White "Durarbayli"]
[Black "ErikBlomqvist"]
[Result "1-0"]
[WhiteElo "2753"]
[BlackElo "2581"]
[TimeControl "180+1"]
[EndTime "10:53:20 PDT"]
[Termination "Durarbayli won by resignation"]

1. e4 {[%clk 0:03:00.9]} 1... c6 {[%clk 0:02:59.7]} 2. d4 {[%clk 0:02:59.8]}
2... d5 {[%clk 0:03:00.6]} 3. exd5 {[%clk 0:03:00.7]} 3... cxd5 {[%clk 0:03:01]}
4. c4 {[%clk 0:02:59.3]} 4... Nf6 {[%clk 0:03:00.9]} 5. Nc3 {[%clk 0:02:58.6]}
5... Nc6 {[%clk 0:03:01.4]} 6. Nf3 {[%clk 0:02:58.9]} 6... a6 {[%clk 0:03:01.9]}
7. c5 {[%clk 0:02:44.1]} 7... Bg4 {[%clk 0:02:57.6]} 8. Be2 {[%clk 0:02:39]}
8... g6 {[%clk 0:02:19.8]} 9. Ne5 {[%clk 0:02:11.8]} 9... Bxe2 {[%clk
0:02:08.2]} 10. Nxe2 {[%clk 0:02:12.7]} 10... Nxe5 {[%clk 0:01:55.4]} 11. dxe5
{[%clk 0:02:11]} 11... Ne4 {[%clk 0:01:55.7]} 12. Be3 {[%clk 0:01:50.5]} 12...
Qa5+ {[%clk 0:01:55]} 13. Kf1 {[%clk 0:01:50]} 13... Nxc5 {[%clk 0:01:08.5]} 14.
Qxd5 {[%clk 0:01:27.6]} 14... e6 {[%clk 0:01:04.3]} 15. Qc4 {[%clk 0:01:27.5]}
15... Be7 {[%clk 0:00:42.1]} 16. b4 {[%clk 0:01:05.6]} 16... Qa4 {[%clk
0:00:16.4]} 17. Bxc5 {[%clk 0:01:02.3]} 17... Rd8 {[%clk 0:00:05.8]} 18. Qb3
{[%clk 0:00:59.9]} 1-0

[Event "*** Titled Tuesday Blitz"]
[Site "Chess.com"]
[Date "2021.04.20"]
[Round "5"]
[White "kubal123"]
[Black "Kostukov_Alex"]
[Result "1-0"]
[WhiteElo "2241"]
[BlackElo "2345"]
[TimeControl "180+1"]
[EndTime "10:53:21 PDT"]
[Termination "kubal123 won by resignation"]

1. d4 {[%clk 0:02:39.7]} 1... g6 {[%clk 0:02:59.6]} 2. e4 {[%clk 0:02:37.4]}
2... Bg7 {[%clk 0:02:59.6]} 3. Nc3 {[%clk 0:02:34.7]} 3... d6 {[%clk 0:02:59.8]}
4. Be3 {[%clk 0:02:31.7]} 4... e5 {[%clk 0:02:58.9]} 5. dxe5 {[%clk 0:02:25.4]}
5... dxe5 {[%clk 0:02:59.8]} 6. Qxd8+ {[%clk 0:02:25.2]} 6... Kxd8 {[%clk
0:03:00.7]} 7. O-O-O+ {[%clk 0:02:25.5]} 7... Nd7 {[%clk 0:03:01]} 8. h4 {[%clk
0:02:24.6]} 8... h5 {[%clk 0:02:54.3]} 9. Bc4 {[%clk 0:02:24.3]} 9... Nh6 {[%clk
0:02:22.5]} 10. Nf3 {[%clk 0:02:23.1]} 10... c6 {[%clk 0:02:08.2]} 11. Ng5
{[%clk 0:02:15.6]} 11... Ke7 {[%clk 0:01:57.2]} 12. Rd2 {[%clk 0:02:02]} 12...
Rf8 {[%clk 0:01:48.1]} 13. Rhd1 {[%clk 0:02:00.8]} 13... b6 {[%clk 0:01:29.8]}
14. Rd6 {[%clk 0:01:50.1]} 14... Ng4 {[%clk 0:00:33.3]} 15. Rxc6 {[%clk
0:01:17.6]} 15... Nxe3 {[%clk 0:00:33.3]} 16. fxe3 {[%clk 0:01:18.5]} 16... Bh6
{[%clk 0:00:30.6]} 17. Nd5+ {[%clk 0:01:17.8]} 17... Kd8 {[%clk 0:00:27.5]} 18.
Rd6 {[%clk 0:01:17.6]} 18... Bxg5 {[%clk 0:00:24.7]} 19. hxg5 {[%clk 0:01:18.5]}
19... Rb8 {[%clk 0:00:17]} 20. Nf6 {[%clk 0:01:16.9]} 20... Rb7 {[%clk
0:00:16.1]} 21. Bb5 {[%clk 0:01:17.2]} 21... Ke7 {[%clk 0:00:12]} 22. Bxd7
{[%clk 0:01:11.5]} 22... Rd8 {[%clk 0:00:11.5]} 23. Bxc8 {[%clk 0:01:07.8]}
23... Rxd6 {[%clk 0:00:11.2]} 24. Bxb7 {[%clk 0:01:05.5]} 1-0

[Event "*** Titled Tuesday Blitz"]
[Site "Chess.com"]
[Date "2021.04.20"]
[Round "5"]
[White "Politov_Pavel"]
[Black "Steegersee"]
[Result "0-1"]
[WhiteElo "2343"]
[BlackElo "2228"]
[TimeControl "180+1"]
[EndTime "10:53:21 PDT"]
[Termination "Steegersee won by resignation"]

1. d4 {[%clk 0:03:00.9]} 1... Nf6 {[%clk 0:02:57.4]} 2. Nc3 {[%clk 0:03:01.3]}
2... d5 {[%clk 0:02:56.8]} 3. Bg5 {[%clk 0:03:01.8]} 3... Nbd7 {[%clk 0:02:57]}
4. Nf3 {[%clk 0:02:58.7]} 4... g6 {[%clk 0:02:57.3]} 5. Qd2 {[%clk 0:02:51.2]}
5... Bg7 {[%clk 0:02:52.9]} 6. Bh6 {[%clk 0:02:51]} 6... O-O {[%clk 0:02:52.5]}
7. h4 {[%clk 0:02:46.9]} 7... Ne4 {[%clk 0:02:45.5]} 8. Nxe4 {[%clk 0:02:36]}
8... dxe4 {[%clk 0:02:46.4]} 9. Bxg7 {[%clk 0:02:24.9]} 9... Kxg7 {[%clk
0:02:43.5]} 10. Ng5 {[%clk 0:02:22.5]} 10... Nf6 {[%clk 0:02:41.3]} 11. O-O-O
{[%clk 0:02:14.1]} 11... h6 {[%clk 0:02:33.9]} 12. Nh3 {[%clk 0:02:11.2]} 12...
h5 {[%clk 0:02:33.7]} 13. Qg5 {[%clk 0:02:02.6]} 13... Qd5 {[%clk 0:02:27.4]}
14. Qg3 {[%clk 0:01:43.1]} 14... Qxa2 {[%clk 0:02:17.6]} 15. d5 {[%clk
0:01:01.5]} 15... Qa1+ {[%clk 0:02:07.1]} 16. Kd2 {[%clk 0:01:01.5]} 16... Qxb2
{[%clk 0:02:07.5]} 17. Nf4 {[%clk 0:00:57]} 17... Rd8 {[%clk 0:01:57.8]} 18. Ke1
{[%clk 0:00:51.7]} 18... c6 {[%clk 0:01:47.2]} 19. e3 {[%clk 0:00:33.2]} 19...
Qc3+ {[%clk 0:01:32.6]} 20. Rd2 {[%clk 0:00:31.6]} 20... cxd5 {[%clk 0:01:16.9]}
21. Be2 {[%clk 0:00:30.6]} 21... Bg4 {[%clk 0:01:16.3]} 22. f3 {[%clk
0:00:28.7]} 22... Bf5 {[%clk 0:01:11.8]} 23. Kd1 {[%clk 0:00:07.4]} 0-1

[Event "*** Titled Tuesday Blitz"]
[Site "Chess.com"]
[Date "2021.04.20"]
[Round "5"]
[White "Trickster_Pony"]
[Black "ErikRonka"]
[Result "0-1"]
[WhiteElo "1589"]
[BlackElo "2467"]
[TimeControl "180+1"]
[EndTime "10:53:22 PDT"]
[Termination "ErikRonka won by resignation"]

1. c4 {[%clk 0:03:00.9]} 1... c6 {[%clk 0:02:57.9]} 2. g3 {[%clk 0:02:57.7]}
2... d5 {[%clk 0:02:57.5]} 3. Bg2 {[%clk 0:02:54.1]} 3... Nf6 {[%clk 0:02:57.6]}
4. Nf3 {[%clk 0:02:52.4]} 4... Bg4 {[%clk 0:02:56.9]} 5. O-O {[%clk 0:02:49.8]}
5... Nbd7 {[%clk 0:02:52.5]} 6. cxd5 {[%clk 0:02:47.1]} 6... Bxf3 {[%clk
0:02:50.8]} 7. Bxf3 {[%clk 0:02:39.9]} 7... cxd5 {[%clk 0:02:50.3]} 8. Nc3
{[%clk 0:02:38]} 8... e6 {[%clk 0:02:49.8]} 9. d4 {[%clk 0:02:35.6]} 9... Be7
{[%clk 0:02:43.9]} 10. Qb3 {[%clk 0:02:33]} 10... Qb6 {[%clk 0:02:35.6]} 11.
Qxb6 {[%clk 0:02:24.2]} 11... Nxb6 {[%clk 0:02:35.1]} 12. b3 {[%clk 0:02:19.2]}
12... Rc8 {[%clk 0:02:25.4]} 13. Bb2 {[%clk 0:02:09]} 13... a6 {[%clk
0:01:53.7]} 14. a4 {[%clk 0:02:01.4]} 14... Bb4 {[%clk 0:01:45.3]} 15. Rfc1
{[%clk 0:01:58.1]} 15... Ke7 {[%clk 0:01:44.6]} 16. a5 {[%clk 0:01:55.6]} 16...
Nbd7 {[%clk 0:01:42.4]} 17. Ra4 {[%clk 0:01:52.3]} 17... Bd6 {[%clk 0:01:38.5]}
18. Ba3 {[%clk 0:01:52.3]} 18... Bxa3 {[%clk 0:01:34.5]} 19. Rxa3 {[%clk
0:01:53.2]} 19... Rc6 {[%clk 0:01:30.9]} 20. Na2 {[%clk 0:01:36.2]} 20... Rhc8
{[%clk 0:01:22.2]} 21. Rxc6 {[%clk 0:01:34.2]} 21... Rxc6 {[%clk 0:01:23.1]} 22.
Nb4 {[%clk 0:01:29.8]} 22... Rc3 {[%clk 0:01:17.8]} 23. Na2 {[%clk 0:01:25.7]}
23... Rc2 {[%clk 0:01:12.1]} 24. b4 {[%clk 0:01:23.3]} 24... Ne8 {[%clk
0:01:07.9]} 25. Nc3 {[%clk 0:01:07.6]} 25... Nd6 {[%clk 0:01:03.6]} 26. e4
{[%clk 0:01:04.3]} 26... Nc4 {[%clk 0:01:00.8]} 27. Rb3 {[%clk 0:00:54.9]} 27...
Nd2 {[%clk 0:00:58.5]} 28. Bd1 {[%clk 0:00:54.3]} 28... Rc1 {[%clk 0:00:43.3]}
29. Rb2 {[%clk 0:00:53.8]} 29... Nxe4 {[%clk 0:00:40.5]} 30. Nxe4 {[%clk
0:00:53.3]} 30... Rxd1+ {[%clk 0:00:39.1]} 0-1

[Event "*** Titled Tuesday Blitz"]
[Site "Chess.com"]
[Date "2021.04.20"]
[Round "5"]
[White "Agoking701"]
[Black "Carolina-moon"]
[Result "1-0"]
[WhiteElo "2317"]
[BlackElo "2114"]
[TimeControl "180+1"]
[EndTime "10:53:25 PDT"]
[Termination "Agoking701 won on time"]

1. Nc3 {[%clk 0:03:00.9]} 1... Nf6 {[%clk 0:02:53.3]} 2. d4 {[%clk 0:03:00.7]}
2... d5 {[%clk 0:02:41.8]} 3. Bf4 {[%clk 0:03:00.7]} 3... Bf5 {[%clk 0:02:31.5]}
4. e3 {[%clk 0:02:57.6]} 4... e6 {[%clk 0:02:24.6]} 5. f3 {[%clk 0:02:56.8]}
5... c5 {[%clk 0:02:02.6]} 6. g4 {[%clk 0:02:40.7]} 6... Bg6 {[%clk 0:02:01]} 7.
h4 {[%clk 0:02:40.4]} 7... h6 {[%clk 0:01:55.1]} 8. Bg3 {[%clk 0:02:33]} 8...
Bd6 {[%clk 0:01:51.2]} 9. Nge2 {[%clk 0:02:29.8]} 9... Bxg3+ {[%clk 0:01:48.3]}
10. Nxg3 {[%clk 0:02:30.7]} 10... cxd4 {[%clk 0:01:46.6]} 11. exd4 {[%clk
0:02:30.6]} 11... Qd6 {[%clk 0:01:46.3]} 12. Kf2 {[%clk 0:02:30.3]} 12... Nc6
{[%clk 0:01:45.4]} 13. Bd3 {[%clk 0:02:27.1]} 13... Bxd3 {[%clk 0:01:35.6]} 14.
Qxd3 {[%clk 0:02:28]} 14... Qf4 {[%clk 0:01:31.3]} 15. Nce2 {[%clk 0:01:59.1]}
15... Nxg4+ {[%clk 0:01:26.7]} 16. Ke1 {[%clk 0:01:53]} 16... Qf6 {[%clk
0:00:17.8]} 17. fxg4 {[%clk 0:01:52.6]} 17... Rc8 {[%clk 0:00:18.1]} 18. c3
{[%clk 0:01:48.6]} 18... O-O {[%clk 0:00:17.8]} 19. g5 {[%clk 0:01:39.3]} 19...
Qe7 {[%clk 0:00:13.1]} 20. gxh6 {[%clk 0:01:37.6]} 20... e5 {[%clk 0:00:13.5]}
21. hxg7 {[%clk 0:01:23.3]} 21... Rfe8 {[%clk 0:00:13.8]} 22. Qe3 {[%clk
0:01:17.4]} 22... exd4 {[%clk 0:00:10.7]} 23. Qh6 {[%clk 0:01:07.7]} 1-0

[Event "*** Titled Tuesday Blitz"]
[Site "Chess.com"]
[Date "2021.04.20"]
[Round "5"]
[White "elisak43"]
[Black "PavelShkapenko"]
[Result "1-0"]
[WhiteElo "2522"]
[BlackElo "2704"]
[TimeControl "180+1"]
[EndTime "10:53:28 PDT"]
[Termination "elisak43 won by resignation"]

1. Nf3 {[%clk 0:03:00.9]} 1... Nf6 {[%clk 0:02:56.4]} 2. g3 {[%clk 0:03:01]}
2... d5 {[%clk 0:02:56.3]} 3. Bg2 {[%clk 0:02:59.7]} 3... c6 {[%clk 0:02:56.8]}
4. O-O {[%clk 0:02:59.9]} 4... Bg4 {[%clk 0:02:56.5]} 5. h3 {[%clk 0:02:58.3]}
5... Bh5 {[%clk 0:02:56.1]} 6. d4 {[%clk 0:02:57.2]} 6... Nbd7 {[%clk 0:02:56]}
7. c4 {[%clk 0:02:57]} 7... e6 {[%clk 0:02:56.4]} 8. cxd5 {[%clk 0:02:55.7]}
8... exd5 {[%clk 0:02:56.4]} 9. Qb3 {[%clk 0:02:53.5]} 9... Qb6 {[%clk
0:02:55.5]} 10. Qe3+ {[%clk 0:02:54]} 10... Be7 {[%clk 0:02:55.3]} 11. Nh4
{[%clk 0:02:54.3]} 11... Bg6 {[%clk 0:02:54]} 12. Nc3 {[%clk 0:02:53.2]} 12...
Qd8 {[%clk 0:02:44.8]} 13. Nxg6 {[%clk 0:02:53.5]} 13... hxg6 {[%clk 0:02:44.9]}
14. Qd3 {[%clk 0:02:54.4]} 14... O-O {[%clk 0:02:44.6]} 15. Bf3 {[%clk
0:02:52.4]} 15... Re8 {[%clk 0:02:41.6]} 16. Kg2 {[%clk 0:02:50.4]} 16... Bb4
{[%clk 0:02:40.8]} 17. h4 {[%clk 0:02:33]} 17... Bxc3 {[%clk 0:02:31.5]} 18.
bxc3 {[%clk 0:02:31.5]} 18... Nb6 {[%clk 0:02:30.5]} 19. Bg5 {[%clk 0:02:27.9]}
19... Qd7 {[%clk 0:02:29.2]} 20. Bxf6 {[%clk 0:02:26]} 20... gxf6 {[%clk
0:02:28]} 21. h5 {[%clk 0:02:26.6]} 21... Kg7 {[%clk 0:02:27.5]} 22. Rh1 {[%clk
0:02:24.7]} 22... Rh8 {[%clk 0:02:27.3]} 23. Rh4 {[%clk 0:02:18.3]} 23... Rh6
{[%clk 0:02:16.4]} 24. Rhh1 {[%clk 0:01:56.9]} 24... Rah8 {[%clk 0:02:12.1]} 25.
hxg6 {[%clk 0:01:52.2]} 25... Rxh1 {[%clk 0:02:10.1]} 26. Rxh1 {[%clk
0:01:53.1]} 26... Rxh1 {[%clk 0:02:10.2]} 27. Kxh1 {[%clk 0:01:54]} 27... fxg6
{[%clk 0:02:07.5]} 28. Kg2 {[%clk 0:01:54]} 28... Qe7 {[%clk 0:02:04.2]} 29. e4
{[%clk 0:01:32.8]} 29... dxe4 {[%clk 0:02:03.3]} 30. Bxe4 {[%clk 0:01:33.7]}
30... f5 {[%clk 0:02:03.4]} 31. Bf3 {[%clk 0:01:31.5]} 31... Qa3 {[%clk
0:01:57.4]} 32. Qe3 {[%clk 0:01:29.2]} 32... Nc4 {[%clk 0:01:50.9]} 33. Qe6
{[%clk 0:01:16.5]} 33... Qxc3 {[%clk 0:01:43.1]} 34. Qe7+ {[%clk 0:01:14.4]}
34... Kh6 {[%clk 0:01:43.6]} 35. Qh4+ {[%clk 0:01:11.9]} 35... Kg7 {[%clk
0:01:43.8]} 36. Qe7+ {[%clk 0:01:08.7]} 36... Kh6 {[%clk 0:01:44]} 37. Qf6
{[%clk 0:00:35.1]} 37... Qb4 {[%clk 0:01:18.3]} 38. Qh8+ {[%clk 0:00:32.7]} 1-0

[Event "*** Titled Tuesday Blitz"]
[Site "Chess.com"]
[Date "2021.04.20"]
[Round "5"]
[White "Enriquack"]
[Black "emperor87"]
[Result "0-1"]
[WhiteElo "2471"]
[BlackElo "2696"]
[TimeControl "180+1"]
[EndTime "10:53:28 PDT"]
[Termination "emperor87 won by resignation"]

1. e4 {[%clk 0:03:00.9]} 1... d5 {[%clk 0:02:58.6]} 2. exd5 {[%clk 0:03:00.9]}
2... Qxd5 {[%clk 0:02:59.5]} 3. Nc3 {[%clk 0:03:01.2]} 3... Qd8 {[%clk
0:03:00.2]} 4. d4 {[%clk 0:03:01.2]} 4... c6 {[%clk 0:03:00.9]} 5. Nf3 {[%clk
0:03:00.4]} 5... Bf5 {[%clk 0:03:01.4]} 6. Nh4 {[%clk 0:02:50.2]} 6... Bg6
{[%clk 0:02:59.8]} 7. Nxg6 {[%clk 0:02:49.9]} 7... hxg6 {[%clk 0:03:00.7]} 8.
Bc4 {[%clk 0:02:50.2]} 8... e6 {[%clk 0:03:00.4]} 9. Be3 {[%clk 0:02:47.8]} 9...
Nf6 {[%clk 0:02:59.5]} 10. Qf3 {[%clk 0:02:45.6]} 10... Nbd7 {[%clk 0:02:58.2]}
11. O-O-O {[%clk 0:02:41.9]} 11... Qa5 {[%clk 0:02:57.8]} 12. Kb1 {[%clk
0:02:41.6]} 12... Qf5 {[%clk 0:02:44.9]} 13. Qg3 {[%clk 0:02:36]} 13... O-O-O
{[%clk 0:02:38]} 14. d5 {[%clk 0:02:01.2]} 14... exd5 {[%clk 0:02:33.1]} 15.
Bxd5 {[%clk 0:01:56.5]} 15... Nxd5 {[%clk 0:02:11.7]} 16. Rxd5 {[%clk
0:01:55.8]} 16... cxd5 {[%clk 0:02:10.1]} 17. Nb5 {[%clk 0:01:56.2]} 17... Ne5
{[%clk 0:02:09.8]} 18. Bd4 {[%clk 0:01:56.2]} 18... Bd6 {[%clk 0:01:55.1]} 19.
Nxd6+ {[%clk 0:01:04.9]} 19... Rxd6 {[%clk 0:01:51.9]} 20. Bxe5 {[%clk
0:01:05.1]} 20... Rc6 {[%clk 0:01:52]} 21. Rc1 {[%clk 0:01:02.3]} 21... f6
{[%clk 0:01:48]} 22. Bd4 {[%clk 0:01:02.4]} 22... a6 {[%clk 0:01:46.7]} 23. h3
{[%clk 0:00:54.5]} 23... Re8 {[%clk 0:01:45.9]} 24. Qb3 {[%clk 0:00:43.9]} 24...
g5 {[%clk 0:01:41.8]} 25. Be3 {[%clk 0:00:41.6]} 25... Qe4 {[%clk 0:01:38.7]}
26. Rd1 {[%clk 0:00:26.2]} 26... Qxg2 {[%clk 0:01:37.8]} 27. a3 {[%clk
0:00:19.5]} 27... Rd8 {[%clk 0:01:32.5]} 28. Bb6 {[%clk 0:00:14.5]} 28... Rdd6
{[%clk 0:01:32.1]} 29. Bd4 {[%clk 0:00:13.9]} 29... Qe4 {[%clk 0:01:28.1]} 30.
Bc3 {[%clk 0:00:08.6]} 30... d4 {[%clk 0:01:25.8]} 31. Bb4 {[%clk 0:00:08]}
31... Rd8 {[%clk 0:01:21.9]} 32. Qg3 {[%clk 0:00:05.7]} 0-1

[Event "*** Titled Tuesday Blitz"]
[Site "Chess.com"]
[Date "2021.04.20"]
[Round "5"]
[White "Cuajada_Zero"]
[Black "aljado"]
[Result "1-0"]
[WhiteElo "2307"]
[BlackElo "2063"]
[TimeControl "180+1"]
[EndTime "10:53:31 PDT"]
[Termination "Cuajada_Zero won by resignation"]

1. d4 {[%clk 0:03:00.9]} 1... Nf6 {[%clk 0:02:58.3]} 2. Bg5 {[%clk 0:03:00.3]}
2... e6 {[%clk 0:02:56.6]} 3. e4 {[%clk 0:02:59.5]} 3... h6 {[%clk 0:02:56.1]}
4. Bxf6 {[%clk 0:02:58.9]} 4... Qxf6 {[%clk 0:02:54.9]} 5. c3 {[%clk 0:02:59.5]}
5... b6 {[%clk 0:02:51]} 6. Bd3 {[%clk 0:02:59.3]} 6... Bb7 {[%clk 0:02:50.2]}
7. Ne2 {[%clk 0:02:59.3]} 7... c5 {[%clk 0:02:40.6]} 8. O-O {[%clk 0:02:56]}
8... d6 {[%clk 0:02:38.2]} 9. Nd2 {[%clk 0:02:54.3]} 9... Be7 {[%clk 0:02:36.2]}
10. f4 {[%clk 0:02:52.9]} 10... cxd4 {[%clk 0:02:14.4]} 11. cxd4 {[%clk
0:02:51.4]} 11... Nc6 {[%clk 0:02:13.7]} 12. e5 {[%clk 0:02:26.2]} 12... dxe5
{[%clk 0:02:12.2]} 13. dxe5 {[%clk 0:02:20.5]} 13... Qh4 {[%clk 0:01:53.4]} 14.
Nf3 {[%clk 0:02:14.1]} 14... Qh5 {[%clk 0:01:32.9]} 15. h3 {[%clk 0:01:37.2]}
15... f5 {[%clk 0:01:05.7]} 16. exf6 {[%clk 0:01:27.2]} 16... Bxf6 {[%clk
0:01:05]} 17. Ng3 {[%clk 0:01:23.1]} 17... Qc5+ {[%clk 0:01:00.1]} 18. Kh1
{[%clk 0:01:20.3]} 18... O-O {[%clk 0:00:59.3]} 19. Qe2 {[%clk 0:01:19.6]} 19...
Nd4 {[%clk 0:00:56.2]} 20. Nxd4 {[%clk 0:01:17.3]} 20... Qxd4 {[%clk 0:00:55.9]}
21. Qxe6+ {[%clk 0:01:17.3]} 21... Kh8 {[%clk 0:00:54]} 22. Qf5 {[%clk
0:01:15.3]} 22... Kg8 {[%clk 0:00:39.9]} 23. Qh7+ {[%clk 0:01:14.2]} 23... Kf7
{[%clk 0:00:39.6]} 24. Rae1 {[%clk 0:01:09.6]} 24... Bxg2+ {[%clk 0:00:17.6]}
25. Kxg2 {[%clk 0:01:07.4]} 25... Qxb2+ {[%clk 0:00:17.9]} 26. Rf2 {[%clk
0:01:06.3]} 26... Qxf2+ {[%clk 0:00:09.6]} 27. Kxf2 {[%clk 0:01:06]} 1-0